[Event "FIDE WSTC-50-65 2022"]
[Site "Acqui Terme"]
[Date "2022.06.24"]
[Round "5.5"]
[White "Kaidanov, Gregory"]
[Black "Cummings, David H."]
[Result "1-0"]
[ECO "C00"]
[WhiteElo "2556"]
[BlackElo "2329"]
[Annotator "TA"]
[PlyCount "73"]
[EventDate "2022.06.20"]
[EventType "team-tourn"]
[EventCountry "ITA"]
[SourceTitle "playchess.com"]
[Source "ChessBase"]
[SourceQuality "1"]
[TimeControl "40/5400+30:1800+30"]

{[%evp 20,73,0,-16,0,0,0,-5,14,0,1,-15,-5,-22,-20,-29,16,8,24,3,58,47,35,67,67,63,82,68,70,70,84,78,105,60,265,270,275,277,289,273,269,267,270,269,280,277,258,272,735,719,1335,1309,1281,1135,29990,29991]} 1. Nf3 {[%emt 0:01:00]} Nf6 {[%emt 0:01:00]} 2. g3 {[%emt 0:01:30]} d5 {[%emt 0:01:30]} 3. Bg2 {[%emt 0:00:30]} e6 {[%emt 0:00:00]} 4. O-O {[%emt 0:00:00]} c5 {[%emt 0:00:00]} 5. d3 {[%emt 0:00:00]} Nc6 {[%emt 0:01:30]} 6. Nbd2 {[%emt 0:02:30]} Be7 {[%emt 0:00:30]} 7. e4 {[%emt 0:00:30]} O-O {[%emt 0:00:30]} 8. Re1 {[%emt 0:00:30]} Qc7 {[%emt 0:00:30]} 9. Nf1 {[%emt 0:00:30]} dxe4 {[%emt 0:03:30]} 10. dxe4 {[%emt 0:00:30]} Rd8 {[%emt 0:03:30]} 11. Qe2 {[%emt 0:00:30]} Nd4 {[%emt 0:03:30] C00: French: Unusual White 2nd moves.} 12. Nxd4 {[%emt 0:00:00]} cxd4 {[%emt 0:00:30]} 13. e5 {[%emt 0:00:00]} Nd7 {[%emt 0:04:30] The position is equal.} 14. Bf4 {[%emt 0:05:30] [#]} Nf8 $146 {[%emt 0:01:30]} ({Predecessor:} 14... Rb8 15. h4 b6 16. Red1 Nc5 17. Nh2 Ba6 18. Qd2 Rbc8 19. a4 d3 20. b4 dxc2 21. Qxc2 Nd3 22. Qxc7 {½-½ (22) Jakel,W (2210)-Rudolph,P (2090) Germany 2014}) 15. Rad1 {[%emt 0:03:30]} Qb6 {[%emt 0:01:30]} 16. Bc1 {[%emt 0:05:30]} Bd7 {[%emt 0:01:30]} 17. Nd2 {[%emt 0:04:30]} (17. Qg4 {with more complications.} Bb5 18. Nd2 Rac8 19. Nb3) 17... Bc6 {[%emt 0:08:30]} (17... Bb5 {keeps more tension.} 18. Qg4 Rac8 19. Nb3 Rxc2 20. Rxd4 f5) 18. Bxc6 {[%emt 0:02:30]} bxc6 {[%emt 0:13:30]} 19. Nc4 {[%emt 0:03:30]} Qc7 {[%emt 0:03:30]} ({Better is} 19... Qa6 $11) 20. h4 {[%emt 0:04:30]} (20. Qg4 {feels hotter.} c5 21. h4 Nd7 22. Bh6) 20... c5 {[%emt 0:02:30]} 21. Qg4 {[%emt 0:03:30]} Kh8 {[%emt 0:21:30]} 22. Rd3 {[%emt 0:14:30][%cal Bd1d3,Bd3f3,Bf3f4][%mdl 32]} Nd7 {[%emt 0:02:30]} 23. Rf3 $40 {[%emt 0:07:30][%mdl 128] White is up to no good.} Rf8 {[%emt 0:00:30]} 24. Qh5 $1 {[%emt 0:06:30]} Kg8 {[%emt 0:05:17] [#]} 25. Bg5 $1 {[%emt 0:02:30]} Qd8 {[%emt 0:06:49]} 26. Rf4 {[%emt 0:13:32] 0x0.00222908739adp-1022s more active pieces. The black rooks are badly placed.} f6 $2 {[%emt 0:08:42] Black cannot hold the game after this.} (26... Qe8 $14) 27. exf6 $18 {[%emt 0:00:29]} Bxf6 {[%emt 0:00:16]} 28. Rxe6 {[%emt 0:01:38][%cal Be1e6,Be6d6,Bd6f6,Bf6f7,Bf7d7][%mdl 32] Hoping for Rfe4.} Bxg5 {[%emt 0:00:45]} 29. hxg5 {[%emt 0:01:01] [#] Black must now prevent Rh4.} Rxf4 {[%emt 0:00:42]} 30. gxf4 {[%emt 0:00:06]} Nf8 {[%emt 0:02:30] Inhibits g6.} 31. Rd6 {[%emt 0:03:14]} Qe7 {[%emt 0:00:08]} 32. Qf3 {[%emt 0:00:14]} Re8 {[%emt 0:00:20]} 33. Qd5+ {[%emt 0:00:50]} Kh8 $2 {[%emt 0:01:46]} (33... Qf7 34. Qxf7+ Kxf7 35. Ne5+ Kg8) 34. Ne5 {[%emt 0:00:23] Intending Nf7+ and mate.} g6 {[%emt 0:00:20]} 35. Rf6 {[%emt 0:02:52] aiming for Nf7+.} Ne6 {[%emt 0:00:30]} 36. Rf7 {[%emt 0:01:33]} Qd8 {[%emt 0:01:18]} 37. Rd7 {[%emt 0:00:56] Weighted Error Value: White=0.07 (flawless) /Black=0.53} 1-0

[Event "FIDE WSTC-50-65 2022"]
[Site "Acqui Terme"]
[Date "2022.06.24"]
[Round "5.6"]
[White "Plotkin, Victor"]
[Black "Novikov, Igor"]
[Result "1/2-1/2"]
[ECO "B22"]
[WhiteElo "2240"]
[BlackElo "2551"]
[Annotator "TA"]
[PlyCount "80"]
[EventDate "2022.06.20"]
[EventType "team-tourn"]
[EventCountry "ITA"]
[SourceTitle "playchess.com"]
[Source "ChessBase"]
[SourceQuality "1"]
[TimeControl "40/5400+30:1800+30"]

{[%evp 19,80,29,26,30,34,34,38,38,41,34,43,43,43,43,49,43,39,42,54,36,23,19,15,18,23,25,24,23,33,39,49,31,39,29,31,28,31,28,37,20,25,24,41,31,81,32,47,9,9,7,7,7,7,7,7,7,7,7,7,7,8,0,7]} 1. e4 {[%emt 0:01:00]} c5 {[%emt 0:01:00]} 2. c3 {[%emt 0:00:00]} d5 {[%emt 0:00:00]} 3. exd5 {[%emt 0:00:00]} Qxd5 {[%emt 0:00:00]} 4. d4 {[%emt 0:00:30]} Nf6 {[%emt 0:00:30]} 5. Nf3 {[%emt 0:00:00]} e6 {[%emt 0:00:30]} 6. Be2 {[%emt 0:03:00]} Nc6 {[%emt 0:01:30]} 7. O-O {[%emt 0:00:30]} Be7 {[%emt 0:01:30]} 8. c4 {[%emt 0:05:30]} Qd7 {[%emt 0:03:30]} 9. dxc5 {[%emt 0:03:30]} Bxc5 {[%emt 0:02:30]} 10. Nc3 {[%emt 0:00:30]} O-O {[%emt 0:01:30]} 11. a3 {[%emt 0:01:30] B22: Sicilian: 2 c3.} Rd8 {[%emt 0:04:30]} 12. Qc2 {[%emt 0:06:30] [#]} b6 $146 {[%emt 0:28:30]} ({Predecessor:} 12... Qc7 13. b4 Be7 14. c5 Bd7 15. Bb2 Be8 16. Nb5 Qb8 17. g3 a5 18. Qc3 axb4 19. axb4 Rxa1 20. Rxa1 {0-1 (57) Kritz,L (2593)-Kanep,M (2508) Dresden 2007}) 13. Rd1 {[%emt 0:01:30] White is slightly better.} Qe7 {[%emt 0:01:30]} 14. Rxd8+ {[%emt 0:01:30]} Qxd8 {[%emt 0:00:30]} 15. Bg5 {[%emt 0:02:30]} Bb7 {[%emt 0:10:30]} 16. Rd1 {[%emt 0:02:30]} Qe8 {[%emt 0:01:30]} 17. Bxf6 {[%emt 0:06:30]} gxf6 {[%emt 0:00:00]} 18. Ne4 {[%emt 0:01:30]} Be7 {[%emt 0:00:00]} 19. Nd6 {[%emt 0:01:30]} Bxd6 {[%emt 0:00:30]} 20. Rxd6 {[%emt 0:00:30]} Rd8 {[%emt 0:00:30]} 21. Qd3 {[%emt 0:04:30]} Rxd6 {[%emt 0:04:30]} 22. Qxd6 {[%emt 0:00:00]} Qb8 {[%emt 0:01:30]} 23. Qxb8+ {[%emt 0:02:00]} Nxb8 $11 {[%emt 0:00:00][%mdl 4096] Endgame KBN-KBN} 24. Nd4 {[%emt 0:01:30]} a6 {[%emt 0:01:00] Against Nb5} 25. f3 {[%emt 0:05:30]} f5 {[%emt 0:02:30]} 26. Kf2 {[%emt 0:01:30]} Kf8 {[%emt 0:00:30]} 27. b4 {[%emt 0:01:30]} Ke7 {[%emt 0:01:30]} 28. Ke3 {[%emt 0:03:30]} f6 {[%emt 0:05:30]} 29. g3 {[%emt 0:02:30]} Bc8 {[%emt 0:02:30]} 30. Bd3 {[%emt 0:01:30]} Bd7 {[%emt 0:02:30]} 31. f4 {[%emt 0:03:30]} h6 {[%emt 0:02:30]} (31... Kd6 $14) 32. Kd2 {[%emt 0:01:30] White is more active.} (32. c5 $16) 32... Nc6 $14 {[%emt 0:05:27]} 33. Nxc6+ {[%emt 0:01:30]} Bxc6 {[%emt 0:00:04] KB-KB. The position is equal.} 34. c5 {[%emt 0:01:30]} bxc5 {[%emt 0:03:25]} 35. Bxa6 {[%emt 0:01:30]} cxb4 {[%emt 0:00:04]} 36. axb4 {[%emt 0:00:00]} Kd6 {[%emt 0:01:01]} 37. Kc3 {[%emt 0:06:00]} Bd5 {[%emt 0:01:07]} 38. Bd3 {[%emt 0:01:30]} Kc6 {[%emt 0:01:01]} 39. Kd4 {[%emt 0:02:30]} Kd6 {[%emt 0:00:10]} 40. Kc3 {[%emt 0:00:00]} Kc6 {Weighted Error Value: White=0.06 (flawless) /Black=0.03 (flawless)} 1/2-1/2

[Event "FIDE WSTC-50-65 2022"]
[Site "Acqui Terme"]
[Date "2022.06.24"]
[Round "5.7"]
[White "Ehlvest, Jaan"]
[Black "Findlay, Ian T."]
[Result "1-0"]
[ECO "A77"]
[WhiteElo "2517"]
[BlackElo "2156"]
[Annotator "TA"]
[PlyCount "65"]
[EventDate "2022.06.20"]
[EventType "team-tourn"]
[EventCountry "ITA"]
[SourceTitle "playchess.com"]
[Source "ChessBase"]
[SourceQuality "1"]
[TimeControl "40/5400+30:1800+30"]

{[%evp 23,65,14,50,47,52,18,52,0,13,2,39,32,55,39,67,75,98,98,150,144,141,153,233,212,386,381,383,374,400,396,390,393,382,394,391,382,383,384,401,391,470,464,511,502]} 1. d4 {[%emt 0:01:00]} Nf6 {[%emt 0:01:00]} 2. c4 {[%emt 0:00:00]} c5 {[%emt 0:00:00]} 3. d5 {[%emt 0:00:00]} e6 {[%emt 0:00:00]} 4. Nc3 {[%emt 0:00:00]} exd5 {[%emt 0:00:30]} 5. cxd5 {[%emt 0:00:00]} d6 {[%emt 0:00:00]} 6. Nf3 {[%emt 0:00:00]} g6 {[%emt 0:00:00]} 7. Nd2 {[%emt 0:00:00]} Bg7 {[%emt 0:01:30]} 8. e4 {[%emt 0:00:30]} O-O {[%emt 0:00:30]} 9. Be2 {[%emt 0:00:00]} Nbd7 {[%emt 0:02:30]} 10. O-O {[%emt 0:01:00]} a6 {[%emt 0:00:00]} 11. a4 {[%emt 0:00:00]} Rb8 {[%emt 0:02:00]} 12. Re1 {[%emt 0:22:00]} Re8 {[%emt 0:00:00]} 13. Ra3 {[%emt 0:08:30] [#] A77: Modern Benoni: Classical: 9...Re8 10 Nd2: 10...a6 and 10...Nbd7.} Nb6 $146 {[%emt 0:01:00]} ({Predecessor:} 13... Ne5 14. h3 g5 15. Nf1 h6 16. Ng3 Bd7 17. a5 Ng6 18. Qc2 Qe7 19. Bf1 Qe5 20. Bd2 g4 {0-1 (32) Wojtaszek,R (2725)-Ponkratov,P (2632) Moscow 2019}) 14. Qc2 {[%emt 0:09:30]} Bd7 {[%emt 0:00:30]} 15. Ra1 {[%emt 0:16:30] White is slightly better.} Nc8 {[%emt 0:02:30]} 16. Rb1 {[%emt 0:01:30]} Qc7 {[%emt 0:02:30]} 17. b3 {[%emt 0:04:30]} b5 {[%emt 0:03:30]} 18. Bb2 {[%emt 0:00:30]} c4 {[%emt 0:23:30]} 19. axb5 {[%emt 0:06:30]} ({Of course not} 19. bxc4 b4 20. Nd1 a5 $15) 19... cxb3 {[%emt 0:01:30]} 20. Qxb3 {[%emt 0:04:30]} Na7 {[%emt 0:01:30]} (20... axb5 $142 21. Nxb5 Qd8) 21. Qc4 $16 {[%emt 0:04:36]} Qxc4 {[%emt 0:27:30]} 22. Nxc4 {[%emt 0:03:13]} ({Don't take} 22. Bxc4 $6 Nxb5 23. f3 Bh6 $14) 22... axb5 {[%emt 0:00:30]} (22... Nxe4 $16 23. Nxe4 Rxe4) 23. Nxd6 $18 {[%emt 0:01:40]} b4 $2 {[%emt 0:00:00] [#]} (23... Red8 24. Ba3 Ng4) 24. Nxe8 {[%emt 0:01:43]} Rxe8 {[%emt 0:03:00]} 25. Na2 {[%emt 0:02:20]} b3 {[%emt 0:04:30]} 26. Nc3 {[%emt 0:01:07]} Nxe4 {[%emt 0:08:07]} 27. Nxe4 {[%emt 0:00:24]} Rxe4 {[%emt 0:00:06]} 28. Bxg7 {[%emt 0:00:17]} Kxg7 {[%emt 0:00:04]} 29. Rxb3 {[%emt 0:00:24]} Nc8 {[%emt 0:01:34]} 30. Kf1 {[%emt 0:02:35]} Nd6 {[%emt 0:02:02]} 31. Rb6 {[%emt 0:01:14]} Nf5 {[%emt 0:01:16]} 32. Rb7 {[%emt 0:02:00]} Ba4 {[%emt 0:01:11]} 33. Bd3 {[%emt 0:01:07] Weighted Error Value: White=0.08 (flawless) /Black=0.35} 1-0

[Event "FIDE WSTC-50-65 2022"]
[Site "Acqui Terme"]
[Date "2022.06.24"]
[Round "5.8"]
[White "Barron, Michael"]
[Black "Sokolin, Leonid"]
[Result "0-1"]
[ECO "B33"]
[WhiteElo "2098"]
[BlackElo "2464"]
[Annotator "TA"]
[PlyCount "86"]
[EventDate "2022.06.20"]
[EventType "team-tourn"]
[EventCountry "ITA"]
[SourceTitle "playchess.com"]
[Source "ChessBase"]
[SourceQuality "1"]
[TimeControl "40/5400+30:1800+30"]

{[%evp 20,86,18,25,21,22,22,22,23,-41,-33,-20,-3,-57,0,-10,-17,-17,0,0,0,0,0,-42,-36,-41,-35,-62,-66,-74,-52,-43,-49,-192,-179,-302,-291,-207,-133,-177,-81,-150,-155,-168,-89,-239,-240,-283,-247,-277,-262,-258,-258,-861,-729,-1026,-1012,-997,-1004,-929,-395,-834,-995,-902,-864,-2456,-2304,-5414,-5397]} 1. e4 {[%emt 0:00:00]} c5 {[%emt 0:01:00]} 2. Nf3 {[%emt 0:00:30]} Nc6 {[%emt 0:00:00]} 3. d4 {[%emt 0:00:30]} cxd4 {[%emt 0:00:00]} 4. Nxd4 {[%emt 0:00:00]} Nf6 {[%emt 0:00:00]} 5. Nc3 {[%emt 0:00:00]} e5 {[%emt 0:00:00]} 6. Ndb5 {[%emt 0:00:30]} d6 {[%emt 0:00:00]} 7. Nd5 {[%emt 0:00:30]} Nxd5 {[%emt 0:00:00]} 8. exd5 {[%emt 0:00:00]} Ne7 {[%emt 0:00:00]} 9. c3 {[%emt 0:00:00]} Nf5 {[%emt 0:01:00]} 10. a4 {[%emt 0:00:30]} Be7 {[%emt 0:00:30]} 11. Bd3 {[%emt 0:00:30]} O-O {[%emt 0:00:30] B33: Sicilian: Pelikan and Sveshnikov Variations.} 12. O-O {[%emt 0:00:00]} Bd7 {[%emt 0:02:30]} 13. Qc2 {[%emt 0:06:00]} g6 {[%emt 0:01:30] [#] The position is equal.} 14. f4 $146 {[%emt 0:00:30]} (14. Re1 $11) ({Predecessor:} 14. Re1 Bg5 15. Bxg5 Qxg5 16. g3 Rfc8 17. f4 exf4 18. Bxf5 Bxf5 19. Qd2 Rd8 20. Qxf4 Qxf4 21. gxf4 {½-½ (27) Rodriguez,K (2353)-Balshaw,A (2339) ICCF email 2013}) 14... a6 $15 {[%emt 0:01:30]} 15. Na3 {[%emt 0:00:00]} Rc8 {[%emt 0:06:30]} 16. Nc4 {[%emt 0:01:00]} (16. Qb3 $11) 16... Re8 {[%emt 0:24:30]} ({Black should play} 16... e4 $1 $15 17. Be2 b5 18. axb5 axb5) 17. Qf2 {[%emt 0:05:30]} ({Don't play} 17. fxe5 dxe5 18. Kh1 Bc5 $17) 17... e4 {[%emt 0:02:30]} 18. Be2 {[%emt 0:00:00]} b5 {[%emt 0:16:30]} 19. axb5 {[%emt 0:10:00]} axb5 {[%emt 0:01:30]} 20. Ne3 {[%emt 0:00:30]} b4 {[%emt 0:01:30]} 21. cxb4 {[%emt 0:01:30]} Nd4 {[%emt 0:01:30]} 22. Ba6 {[%emt 0:17:30]} Ra8 $36 {[%emt 0:02:30][%mdl 2048] Black has the initiative.} 23. Nc4 {[%emt 0:05:30]} Nb3 {[%emt 0:02:30]} 24. Ra3 {[%emt 0:01:30] [#]} Rxa6 $1 {[%emt 0:04:30]} 25. Rxb3 {[%emt 0:08:30][%cal Of4f5] Threatens to win with f5!} Bb5 {[%emt 0:03:30]} 26. Na3 {[%emt 0:03:30]} Bxf1 $19 {[%emt 0:01:30]} 27. Qxf1 {[%emt 0:00:00]} (27. Kxf1 $142 Qa8 28. Qd4) 27... Qa8 {[%emt 0:04:30][%cal Oa8d5]} 28. Qd1 {[%emt 0:02:00]} Qb7 {[%emt 0:02:30]} 29. Be3 {[%emt 0:01:30]} Bf6 {[%emt 0:03:23]} (29... Ra4 $19 {is more deadly.} 30. b5 Bf6) 30. b5 {[%emt 0:00:30]} (30. Qd2 $142) 30... Ra4 $17 {[%emt 0:00:40][%cal Of6b2] Black is more active.} 31. Qd2 {[%emt 0:04:30] [#]} Rb8 {[%emt 0:06:04]} ({Black should try} 31... Rea8 $1 $19 {And now ...Bd8 would win.} 32. h3 Bd8) 32. Kf2 {[%emt 0:07:30]} (32. h3 $17 {is a better defense.}) 32... Bd8 $19 {[%emt 0:00:52]} 33. Rc3 {[%emt 0:00:30]} Bb6 {[%emt 0:05:05]} 34. Rc6 {[%emt 0:03:30]} Bxe3+ {[%emt 0:00:43]} 35. Qxe3 {[%emt 0:00:30]} Qe7 {[%emt 0:00:34]} 36. Qc3 $2 {[%emt 0:04:55]} (36. Kg1) 36... e3+ {[%emt 0:02:30]} 37. Qxe3 {[%emt 0:01:24]} Re4 {[%emt 0:00:36]} 38. Qf3 {[%emt 0:03:21]} Qh4+ {[%emt 0:00:49]} 39. Qg3 {[%emt 0:00:03]} Rxf4+ {[%emt 0:00:08]} (39... Qf6 $142 {( -> ...Qd4+)} 40. Nc2 Rxf4+ 41. Ke2 Qe5+ 42. Kd2 Qxd5+ 43. Kc3 Qe5+ 44. Kd2 Rxb5) 40. Ke3 {[%emt 0:00:00]} (40. Kg1 Qf6 41. Rc1) 40... Re8+ {[%emt 0:00:00][%cal Bb8e8,Be8e4,Be4d4][%mdl 32] Black is clearly winning.} 41. Kd3 {[%emt 0:00:17]} Qf6 {[%emt 0:03:06]} 42. Nc4 {[%emt 0:00:30]} Ree4 {[%emt 0:08:30] White must now prevent ...Rd4+.} 43. b6 {[%emt 0:02:30]} Rd4+ {[%emt 0:00:30] Weighted Error Value: White=0.94/Black=0.23 (precise)} 0-1

[Event "FIDE WSTC-50-65 2022"]
[Site "Acqui Terme"]
[Date "2022.06.24"]
[Round "5.9"]
[White "Nunn, John D M"]
[Black "Vaisser, Anatoly"]
[Result "1-0"]
[ECO "C19"]
[WhiteElo "2568"]
[BlackElo "2488"]
[Annotator "TA"]
[PlyCount "137"]
[EventDate "2022.06.20"]
[EventType "team-tourn"]
[EventCountry "ITA"]
[SourceTitle "playchess.com"]
[Source "ChessBase"]
[SourceQuality "1"]
[TimeControl "40/5400+30:1800+30"]

{[%evp 21,137,3,26,26,39,41,54,63,150,138,172,158,234,216,293,156,138,144,226,187,203,153,185,162,214,209,218,231,222,141,243,258,249,231,266,265,262,256,269,256,262,261,271,263,239,121,122,92,122,122,122,100,105,107,112,81,86,0,78,24,227,227,200,8,511,512,512,487,508,509,509,505,479,457,809,436,397,0,469,448,448,276,358,331,881,351,665,522,887,912,908,885,894,873,841,525,839,760,791,790,839,826,798,765,29969,29967,29969,29969,29966,29963,29946,11074,29981,29982,29982,29983,29982,29983]} 1. e4 {[%emt 0:01:00]} e6 {[%emt 0:01:00]} 2. d4 {[%emt 0:00:00]} d5 {[%emt 0:00:00]} 3. Nc3 {[%emt 0:00:00]} Bb4 {[%emt 0:00:00]} 4. e5 {[%emt 0:00:00]} c5 {[%emt 0:00:30]} 5. a3 {[%emt 0:00:00]} Bxc3+ {[%emt 0:00:30]} 6. bxc3 {[%emt 0:00:30]} Qc7 {[%emt 0:00:30]} 7. a4 {[%emt 0:07:30]} Ne7 {[%emt 0:01:30]} 8. Nf3 {[%emt 0:00:30]} b6 {[%emt 0:01:30]} 9. Bb5+ {[%emt 0:00:30]} Bd7 {[%emt 0:00:30]} 10. Bd3 {[%emt 0:00:30]} Nbc6 {[%emt 0:02:30]} 11. O-O {[%emt 0:00:00]} c4 {[%emt 0:11:30]} 12. Be2 {[%emt 0:00:00] C19: French: 3 Nc3 Bb4: Main line: 7 Nf3 and 7 a4.} f6 {[%emt 0:00:00][%cal Rf6e5]} 13. Re1 {[%emt 0:03:30]} Ng6 {[%emt 0:08:00]} 14. Ba3 {[%emt 0:05:30] White is slightly better.} Nce7 {[%emt 0:09:30] [#]} (14... Qd8 $14) 15. h4 $146 {[%emt 0:04:30]} ({Predecessor:} 15. Bd6 Qd8 16. Qb1 Nf5 17. Bb4 a5 18. Ba3 Bxa4 19. exf6 gxf6 20. Bxc4 dxc4 21. Rxe6+ {0-1 (29) Miceli,G (2047)-Kononenko,T (2383) Salou 2006}) 15... h5 {[%emt 0:13:30]} 16. g3 {[%emt 0:04:30][%cal Oa4a5]} fxe5 {[%emt 0:11:30]} (16... O-O-O $16 17. a5 b5) 17. dxe5 {[%emt 0:25:30]} Nxe5 {[%emt 0:00:30]} 18. Nxe5 {[%emt 0:01:30]} ({White should try} 18. Ng5 $18) 18... Qxe5 {[%emt 0:00:30]} 19. Bxc4 {[%emt 0:02:30]} Qf5 {[%emt 0:04:30]} (19... Qxc3 $16 20. Bxd5 Nxd5) 20. Bd3 $1 $18 {[%emt 0:03:30]} Qf6 {[%emt 0:00:30]} 21. Bd6 {[%emt 0:01:30]} O-O {[%emt 0:07:30]} 22. Qe2 {[%emt 0:00:30] aiming for a5. Active counter play!} (22. Qxh5 Qxf2+ 23. Kh1 Nf5 24. Bxf5 (24. Rf1 Qxg3 25. Bxf8 Bc6 $15) 24... Rxf5 $15) 22... Rae8 {[%emt 0:01:30]} (22... Rf7 {keeps fighting.} 23. Bxe7 Rxe7) 23. a5 {[%emt 0:00:30]} (23. Qxh5 Qxf2+ 24. Kh1 Rf5 $14) 23... Rf7 {[%emt 0:06:39]} 24. axb6 {[%emt 0:00:30]} axb6 {[%emt 0:00:03]} 25. Ra7 {[%emt 0:09:30]} (25. Qxh5 Qxf2+ 26. Kh1 Nf5 $11) 25... Nf5 {[%emt 0:04:00]} (25... Nc6 $16 {is a better defense.} 26. Rxd7 Rxd7 27. Qxh5 g6 28. Qxg6+ Qxg6 29. Bxg6 Red8) 26. Be5 {[%emt 0:01:30] This bishop pair is nice.} Qg6 {[%emt 0:01:09]} 27. Rb7 {[%emt 0:00:30]} b5 {[%emt 0:00:36]} 28. Ra1 {[%emt 0:02:30] Inhibits Ra8.} Bc6 {[%emt 0:01:55]} 29. Rb6 {[%emt 0:00:30]} (29. Bxb5 Bxb5 30. Qxb5 Rxb7 31. Qxb7 Nxh4 $17) 29... Rc8 {[%emt 0:00:58]} 30. Raa6 {[%emt 0:04:30]} Bd7 {[%emt 0:00:20]} 31. Ra7 {[%emt 0:00:30]} Bc6 {[%emt 0:01:10]} 32. Rxf7 {[%emt 0:01:30]} Qxf7 {[%emt 0:00:15]} 33. Bxb5 {[%emt 0:01:30]} (33. Bd4 $18) 33... Bxb5 $16 {[%emt 0:00:40]} 34. Rxb5 {[%emt 0:00:31]} Kh7 {[%emt 0:01:17]} 35. Rb6 {[%emt 0:01:23]} Qg6 {[%emt 0:04:08]} 36. Kh2 {[%emt 0:02:23]} Rc4 {[%emt 0:01:53]} 37. Rb4 {[%emt 0:00:41]} Rc6 {[%emt 0:01:16]} 38. Qb5 {[%emt 0:04:15]} Rc8 {[%emt 0:01:14]} 39. Qd7 {[%emt 0:00:59]} ({Better is} 39. Qa6 $16 Re8 40. Qe2) 39... Re8 {[%emt 0:01:06]} (39... Rf8 $11) 40. Rb6 {[%emt 0:00:00]} (40. Qa7 $1 $16) 40... Ne3 $2 {[%emt 0:00:00]} 41. Bxg7 $1 $18 {[%emt 0:11:48] Hoping for Bd4+.} (41. fxe3 Qxc2+ 42. Kh1 Qd1+ 43. Kh2 Qc2+ 44. Kh3 Qf5+ 45. Kh2 Qc2+ $11) 41... Kg8 {[%emt 0:09:51] [#]} 42. Bd4 $2 {[%emt 0:06:30]} (42. fxe3 Qxc2+ 43. Kh1 Qd1+ 44. Kg2 Qc2+ 45. Kh3 Qf5+ 46. Kh2 Qc2+ 47. Kh1 Qd1+ 48. Kg2 Qe2+ 49. Kg1 Qe1+ 50. Kh2 Qf2+ 51. Kh3 Qf1+ 52. Kh2 Qf2+ 53. Kh3 Qf1+ 54. Kh2 Qf2+ $11) (42. Kg1 $1 $18) 42... Ng4+ $2 {[%emt 0:08:19][%mdl 8192]} (42... Nf1+ $1 $11 43. Kg2 Nxg3) 43. Kg1 {[%emt 0:00:30]} Qf7 {[%emt 0:00:34]} 44. Qc6 {[%emt 0:03:30]} e5 {[%emt 0:01:34]} 45. Rb7 {[%emt 0:03:30]} Qe6 {[%emt 0:01:01] [#]} 46. Qc7 {[%emt 0:00:30][%csl Gb7][%cal Rc7g7]} Qg6 {[%emt 0:00:30] Prevents Qg7+.} 47. Bc5 {[%emt 0:00:30]} Nf6 {[%emt 0:06:28]} (47... Ra8 $142 48. Rb8+ Rxb8 49. Qxb8+ Kg7) 48. Be3 {[%emt 0:06:09] Strongly threatening Qc6.} Ng4 {[%emt 0:03:29]} 49. Bc5 {[%emt 0:04:20]} (49. Ba7 $18) 49... d4 $2 {[%emt 0:01:41][%mdl 8192]} (49... Nf6 $1 $11 {and Black is okay.} 50. Qc6 Qf5) 50. Rb8 {[%emt 0:04:55]} ({Not} 50. cxd4 Nxf2 51. Rb8 (51. Kxf2 Qxc2+ 52. Kg1 Qd1+ 53. Kh2 Qe2+ 54. Kh3 Qf1+ 55. Kh2 Qf2+ 56. Kh3 Qf1+ 57. Kh2 Qf2+ 58. Kh3 Qf1+ $11) 51... Ne4 52. Qxe5 (52. dxe5 Qxg3+ 53. Kf1 Qf3+ 54. Ke1 Qc3+ 55. Ke2 Qxc2+ 56. Ke3 Qc3+ 57. Kxe4 Qc4+ 58. Ke3 Qc3+ 59. Kf4 Qc4+ 60. Kg5 Qg4+ 61. Kh6 Qe6+ 62. Kg5 Qg4+ 63. Kh6 Qe6+ 64. Kg5 Qg4+ $11) 52... Rxb8 53. Qxb8+ Kh7 54. Qc7+ Kg8 55. Qd8+ Kh7 56. Qc7+ Kh8 57. Qe5+ Kg8 58. Qd5+ Kg7 59. Qe5+ Kf7 60. Qc7+ Kg8 61. Qd8+ Kg7 62. Qd7+ Kg8 $18) 50... dxc3 {[%emt 0:01:45]} 51. Rxe8+ {[%emt 0:02:24]} Qxe8 {[%emt 0:00:02][%mdl 4096] Endgame KQB-KQN} 52. Bb4 {[%emt 0:00:18]} Qb5 $2 {[%emt 0:01:56]} (52... Qe6 53. Qd8+ Kg7 54. Bxc3 Qf7 55. Qg5+ Kh7) 53. Qxc3 $2 {[%emt 0:00:51]} (53. Qd8+ Kh7 54. Qe7+ Kg6 55. Qg5+ Kh7 56. Qe7+ Kg6 57. Qg5+ Kh7 58. Qxh5+ Nh6 59. Bf8 Qb1+ 60. Kg2 Qb7+ 61. f3) 53... Qe2 $2 {[%emt 0:00:30]} (53... Qd7 54. Kg2 Qf5) 54. Qd2 {[%emt 0:00:07]} Qf3 {[%emt 0:01:11]} 55. Qg5+ {[%emt 0:00:33]} Kf7 {[%emt 0:00:12]} 56. Qxh5+ {[%emt 0:00:07]} Kg7 {[%emt 0:00:20]} 57. Qg5+ {[%emt 0:00:29]} Kf7 {[%emt 0:00:24]} 58. Qd2 {[%emt 0:00:24] Threatens to win with Qd7+.} e4 {[%emt 0:00:45]} 59. Bc5 {[%emt 0:00:48] Prevents e3.} Qf5 {[%emt 0:01:02]} 60. Bd4 {[%emt 0:00:33]} Ke6 {[%emt 0:00:34]} 61. c4 {[%emt 0:00:22]} Kd7 {[%emt 0:01:08]} 62. Qf4 {[%emt 0:01:58]} Qxf4 {[%emt 0:01:05]} 63. gxf4 {[%emt 0:00:06] KB-KN} Nh6 {[%emt 0:00:06]} 64. Be3 {[%emt 0:01:44]} Nf5 {[%emt 0:00:15]} 65. h5 {[%emt 0:00:03][%cal Bh4h5,Bh5h6,Bh6h7][%mdl 32]} Ke6 {[%emt 0:00:11]} 66. Kg2 {[%emt 0:00:07]} (66. Kh2 $142 Kf6 67. Kh3 Ne7 68. Kg4 Nf5 69. c5 Nh6+ 70. Kh4 Nf5+ 71. Kh3) 66... Ng7 {[%emt 0:01:52]} 67. h6 {[%emt 0:00:37] White mates.} Nf5 {[%emt 0:00:01]} 68. h7 {[%emt 0:00:00]} Nh4+ {[%emt 0:00:01]} 69. Kg3 {[%emt 0:00:05] Weighted Error Value: White=0.48/Black=0.74} 1-0